fUST/lending_fUST_20250206
["ID","MTS","AMOUNT","RATE_DAILY","PERIOD"]
[351939201,1738853441051,-500.0,0.00013699,2]
[351939202,1738853441061,-500.0,0.00013699,2]
[351939203,1738853441071,-500.0,0.00013699,2]
[351939204,1738853441080,-306.33113348,0.00013699,2]
[351939205,1738853441089,-500.0,0.00013699,2]
[351939206,1738853441099,-500.0,0.00013699,2]
[351939207,1738853441109,-500.0,0.00013699,2]
[351939208,1738853441119,-500.0,0.00013699,2]
[351939209,1738853441128,-500.0,0.00013699,2]
[351939210,1738853441137,-500.0,0.00013699,2]
[351939211,1738853441147,-500.0,0.00013699,2]
[351939212,1738853441157,-500.0,0.00013699,2]
[351939213,1738853441166,-500.0,0.00013699,2]
[351939214,1738853441175,-500.0,0.00013699,2]
[351939215,1738853441186,-500.0,0.00013699,2]
[351939216,1738853441196,-500.0,0.00013699,2]
[351939217,1738853441206,-500.0,0.00013699,2]
[351939218,1738853441215,-500.0,0.00013699,2]
[351939219,1738853441225,-500.0,0.00013699,2]
[351939220,1738853441235,-500.0,0.00013699,2]
[351939221,1738853441244,-500.0,0.00013699,2]
[351939222,1738853441254,-500.0,0.00013699,2]
[351939223,1738853441263,-500.0,0.00013699,2]
[351939224,1738853441273,-500.0,0.00013699,2]
[351939225,1738853441284,-500.0,0.00013699,2]
[351939226,1738853441298,-500.0,0.00013699,2]
[351939227,1738853441308,-500.0,0.00013699,2]
[351939228,1738853441318,-500.0,0.00013699,2]
[351939229,1738853441327,-500.0,0.00013699,2]
[351939230,1738853441336,-500.0,0.00013699,2]
[351939231,1738853441346,-500.0,0.00013699,2]
[351939232,1738853441356,-500.0,0.00013699,2]
[351939233,1738853441366,-500.0,0.00013699,2]
[351939234,1738853441375,-500.0,0.00013699,2]
[351939235,1738853441385,-500.0,0.00013699,2]
[351939236,1738853441394,-500.0,0.00013699,2]
[351939237,1738853441404,-260.16496094,0.00013699,2]
[351939238,1738853441413,-500.0,0.00013699,2]
[351939239,1738853441423,-500.0,0.00013699,2]
[351939240,1738853441436,-500.0,0.00013699,2]
[351939241,1738853441446,-500.0,0.00013699,2]
[351939242,1738853441455,-500.0,0.00013699,2]
[351939243,1738853441465,-500.0,0.00013699,2]
[351939244,1738853441474,-500.0,0.00013699,2]
[351939245,1738853441483,-500.0,0.00013699,2]
[351939246,1738853441493,-500.0,0.00013699,2]
[351939247,1738853441502,-500.0,0.00013699,2]
[351939248,1738853441512,-500.0,0.00013699,2]
[351939249,1738853441522,-559.76785838,0.00013699,2]
[351939250,1738853441531,-500.0,0.00013699,2]
[351939251,1738853441540,-500.0,0.00013699,2]
[351939252,1738853441550,-500.0,0.00013699,2]
[351939253,1738853441560,-500.0,0.00013699,2]
[351939254,1738853441569,-500.0,0.00013699,2]
[351939255,1738853441578,-500.0,0.00013699,2]
[351939256,1738853441587,-1293.68832617,0.00013699,2]
[351939257,1738853441597,-1293.68832617,0.00013699,2]
[351939258,1738853441606,-1293.68832617,0.00013699,2]
[351939259,1738853441616,-1293.68832617,0.00013699,2]
[351939260,1738853441625,-1293.68832617,0.00013699,2]
[351939261,1738853441635,-1293.68832617,0.00013699,2]
[351939262,1738853441644,-1293.68832617,0.00013699,2]
[351939263,1738853441654,-1293.68832617,0.00013699,2]
[351939264,1738853441664,-1293.68832617,0.00013699,2]
[351939265,1738853441673,-1293.68832617,0.00013699,2]
[351939266,1738853441686,-1293.68832617,0.00013699,2]
[351939267,1738853441697,-1293.68832617,0.00013699,2]
[351939268,1738853441706,-1293.68832617,0.00013699,2]
[351939269,1738853441716,-1293.68832617,0.00013699,2]
[351939270,1738853441726,-1293.68832617,0.00013699,2]
[351939271,1738853441736,-1293.68832617,0.00013699,2]
[351939272,1738853441747,-1293.68832617,0.00013699,2]
[351939273,1738853441757,-1293.68832617,0.00013699,2]
[351939274,1738853441767,-1293.68832617,0.00013699,2]
[351939275,1738853441777,-1293.68832617,0.00013699,2]
[351939276,1738853441786,-1293.68832617,0.00013699,2]
[351939277,1738853441796,-1293.68832617,0.00013699,2]
[351939278,1738853441805,-1293.68832617,0.00013699,2]
[351939279,1738853441815,-1293.68832617,0.00013699,2]
[351939280,1738853441824,-1293.68832617,0.00013699,2]
[351939281,1738853441834,-1293.68832617,0.00013699,2]
[351939282,1738853441843,-1293.68832617,0.00013699,2]
[351939283,1738853441852,-1293.68832617,0.00013699,2]
[351939284,1738853441863,-1293.68832617,0.00013699,2]
[351939285,1738853441873,-1293.68832617,0.00013699,2]
[351939286,1738853441883,-1293.68832617,0.00013699,2]
[351939287,1738853441893,-1293.68832615,0.00013699,2]
[351939288,1738853441904,-1293.68832615,0.00013699,2]
[351939289,1738853441913,-1293.68832615,0.00013699,2]
[351939290,1738853441923,-1293.68832615,0.00013699,2]
[351939291,1738853441934,-1293.68832615,0.00013699,2]
[351939292,1738853441944,-1293.68832615,0.00013699,2]
[351939293,1738853441953,-153.87,0.000137,2]
[351939294,1738853441963,-153.87,0.000137,2]
[351939295,1738853441973,-153.87,0.000137,2]
[351939296,1738853441982,-153.87,0.000137,2]
[351939297,1738853441992,-153.87,0.000137,2]
[351939298,1738853442001,-153.87,0.000137,2]
[351939299,1738853442010,-153.87,0.000137,2]
[351939300,1738853442020,-153.87,0.000137,2]
[351939301,1738853442029,-153.87,0.000137,2]
[351939302,1738853442039,-153.87,0.000137,2]
[351939303,1738853442048,-153.87,0.000137,2]
[351939304,1738853442058,-153.87,0.000137,2]
[351939305,1738853442067,-153.87,0.000137,2]
[351939306,1738853442077,-1318.45889411,0.00013723,2]
[351939307,1738853442087,-3204.60773908,0.0001373,2]
[351939308,1738853442097,-152.0,0.00013738,2]
[351939309,1738853442106,-249.51389839,0.00013834,2]
[351939310,1738853442116,-500.0,0.00013834,2]
[351939311,1738853442126,-500.0,0.00013834,2]
[351939312,1738853442135,-500.0,0.00013834,2]
[351939313,1738853442145,-347.74628856,0.00013834,2]
[351939314,1738853442155,-2704.32,0.00013834,2]
[351939315,1738853442164,-2704.32,0.00013834,2]
[351939316,1738853442174,-2704.32,0.00013834,2]
[351939317,1738853442186,-2704.32,0.00013834,2]
[351939318,1738853442195,-2704.3448513,0.00013834,2]
[351939319,1738853442205,-660.39,0.00013835,2]
[351939320,1738853442214,-500.0,0.00013835,2]
[351939321,1738853442224,-500.0,0.00013835,2]
[351939322,1738853442234,-500.0,0.00013835,2]
[351939323,1738853442244,-500.0,0.00013835,2]
[351939324,1738853442254,-500.0,0.00013835,2]
[351939325,1738853442264,-500.0,0.00013835,2]
[351939326,1738853442274,-572.16,0.00013835,2]
[351939327,1738853442285,-500.0,0.00013835,2]
[351939328,1738853442294,-500.0,0.00013835,2]
[351939329,1738853442304,-500.0,0.00013835,2]
[351939330,1738853442314,-500.0,0.00013835,2]
[351939331,1738853442324,-500.0,0.00013835,2]
[351939332,1738853442334,-864.34,0.00013835,2]
[351939333,1738853442344,-653.85,0.00013835,2]
[351939334,1738853442357,-1409.42,0.00013835,2]
[351939335,1738853442367,-500.0,0.00013835,2]
[351939336,1738853442377,-500.0,0.00013835,2]
[351939337,1738853442387,-500.0,0.00013835,2]
[351939338,1738853442398,-500.0,0.00013835,2]
[351939339,1738853442408,-500.0,0.00013835,2]
[351939340,1738853442418,-500.0,0.00013835,2]
[351939341,1738853442429,-622.0,0.00013835,2]
[351939342,1738853442439,-473.11195959,0.00013835,2]
[351939343,1738853442449,-848.38,0.00013835,2]
[351939344,1738853442459,-500.0,0.00013835,2]
[351939345,1738853442469,-847.82,0.00013835,2]
[351939346,1738853442479,-500.0,0.00013835,2]
[351939347,1738853442489,-500.0,0.00013835,2]
[351939348,1738853442499,-500.0,0.00013835,2]
[351939349,1738853442508,-500.0,0.00013835,2]
[351939350,1738853442518,-500.0,0.00013835,2]
[351939351,1738853442527,-712.63,0.00013835,2]
[351939352,1738853442537,-750.53,0.00013835,2]
[351939353,1738853442546,-500.0,0.00013835,2]
[351939354,1738853442556,-500.0,0.00013835,2]
[351939355,1738853442566,-500.0,0.00013835,2]
[351939356,1738853442575,-500.0,0.00013835,2]
[351939357,1738853442584,-500.0,0.00013835,2]
[351939358,1738853442594,-500.0,0.00013835,2]
[351939359,1738853442603,-306.36551695,0.00013835,2]
[351939360,1738853442613,-1559.74,0.00013835,2]
[351939361,1738853442622,-500.0,0.00013835,2]
[351939362,1738853442632,-500.0,0.00013835,2]
[351939363,1738853442642,-524.14,0.00013835,2]
[351939364,1738853442652,-1569.15,0.00013835,2]
[351939365,1738853442662,-500.0,0.00013835,2]
[351939366,1738853442672,-1086.23,0.00013835,2]
[351939367,1738853442690,-500.0,0.00013835,2]
[351939368,1738853442700,-500.0,0.00013835,2]
[351939369,1738853442711,-500.0,0.00013835,2]
[351939370,1738853442721,-5796.15,0.00013835,2]
[351939371,1738853442732,-376.87501903,0.00013835,2]
[351939372,1738853442742,-500.0,0.00013835,2]
[351939373,1738853442752,-500.0,0.00013835,2]
[351939374,1738853442763,-571.02,0.00013835,2]
[351939375,1738853442774,-500.0,0.00013835,2]
[351939376,1738853442785,-500.0,0.00013835,2]
[351939377,1738853442795,-503.46361273,0.00013835,2]
[351939378,1738853442805,-500.0,0.00013835,2]
[351939379,1738853442815,-1292.8,0.00013835,2]
[351939380,1738853442825,-500.0,0.00013835,2]
[351939381,1738853442981,-500.0,0.00013835,2]
[351939382,1738853442991,-500.0,0.00013835,2]
[351939383,1738853443000,-500.0,0.00013835,2]
[351939384,1738853443010,-500.0,0.00013835,2]
[351939385,1738853443019,-1094.73,0.00013835,2]
[351939386,1738853443029,-500.0,0.00013835,2]
[351939387,1738853443038,-500.0,0.00013835,2]
[351939388,1738853443047,-1410.27,0.00013835,2]
[351939389,1738853443057,-500.0,0.00013835,2]
[351939391,1738853443066,-2539.8,0.00013835,2]
[351939392,1738853443076,-500.0,0.00013835,2]
[351939393,1738853443086,-1732.91,0.00013835,2]
[351939395,1738853443096,-639.95,0.00013835,2]
[351939396,1738853443105,-500.0,0.00013835,2]
[351939397,1738853443115,-500.0,0.00013835,2]
[351939398,1738853443124,-1126.62,0.00013835,2]
[351939399,1738853443133,-500.0,0.00013835,2]
[351939400,1738853443142,-793.43,0.00013835,2]
[351939401,1738853443152,-827.21,0.00013835,2]
[351939402,1738853443161,-780.14,0.00013835,2]
[351939403,1738853443171,-500.0,0.00013835,2]
[351939404,1738853443184,-1894.12,0.00013835,2]
[351939405,1738853443193,-500.0,0.00013835,2]
[351939406,1738853443204,-581.44,0.00013835,2]
[351939407,1738853443214,-1284.9,0.00013835,2]
[351939408,1738853443223,-500.0,0.00013835,2]
[351939409,1738853443233,-500.0,0.00013835,2]
[351939410,1738853443242,-4157.86,0.00013835,2]
[351939411,1738853443253,-3126.78,0.00013835,2]
[351939412,1738853443262,-1065.19,0.00013835,2]
[351939413,1738853443272,-6963.41,0.00013835,2]
[351939414,1738853443282,-500.0,0.00013835,2]
[351939415,1738853443292,-500.0,0.00013835,2]
[351939416,1738853443302,-500.0,0.00013835,2]
[351939417,1738853443312,-500.0,0.00013835,2]
[351939419,1738853443322,-500.0,0.00013835,2]
[351939420,1738853443332,-500.0,0.00013835,2]
[351939422,1738853443342,-500.0,0.00013835,2]
[351939424,1738853443351,-500.0,0.00013835,2]
[351939426,1738853443361,-1016.63,0.00013835,2]
[351939428,1738853443371,-500.0,0.00013835,2]
[351939430,1738853443382,-500.0,0.00013835,2]
[351939432,1738853443391,-1200.01,0.00013835,2]
[351939434,1738853443401,-13982.56,0.00013835,2]
[351939436,1738853443411,-1306.86,0.00013835,2]
[351939438,1738853443421,-162.63639976,0.00013835,2]
[351939440,1738853443434,-500.0,0.00013835,2]
[351939442,1738853443444,-4363.28,0.00013835,2]
[351939444,1738853443454,-500.0,0.00013835,2]
[351939445,1738853443463,-1001.84,0.00013835,2]
[351939447,1738853443473,-500.0,0.00013835,2]
[351939448,1738853443483,-42643.98,0.00013835,2]
[351939450,1738853443493,-500.0,0.00013835,2]
[351939451,1738853443502,-2320.38,0.00013835,2]
[351939453,1738853443512,-500.0,0.00013835,2]
[351939455,1738853443522,-500.0,0.00013835,2]
[351939457,1738853443531,-500.0,0.00013835,2]
[351939459,1738853443541,-500.0,0.00013835,2]
[351939461,1738853443552,-500.0,0.00013835,2]
[351939462,1738853443561,-1322.58,0.00013835,2]
[351939463,1738853443571,-327.28588589,0.00013835,2]
[351939464,1738853443581,-500.0,0.00013835,2]
[351939465,1738853443591,-2468.47,0.00013835,2]
[351939466,1738853443602,-2135.49,0.00013835,2]
[351939467,1738853443612,-394.00457614,0.00013835,2]
[351939468,1738853443622,-1507.93,0.00013835,2]
[351939469,1738853443631,-500.0,0.00013835,2]
[351939471,1738853443641,-500.0,0.00013835,2]
[351939472,1738853443651,-1357.54,0.00013835,2]
[351939473,1738853443662,-1206.68,0.00013835,2]
[351939474,1738853443671,-1755.26,0.00013835,2]
[351939475,1738853443688,-17470.79,0.00013835,2]
[351939476,1738853443703,-500.0,0.00013835,2]
[351939477,1738853443713,-644.09,0.00013835,2]
[351939478,1738853443723,-500.0,0.00013835,2]
[351939479,1738853443734,-500.0,0.00013835,2]
[351939480,1738853443750,-500.0,0.00013835,2]
[351939481,1738853443759,-729.89,0.00013835,2]
[351939482,1738853443774,-2380.35,0.00013835,2]
[351939483,1738853443785,-780.62,0.00013835,2]
[351939484,1738853443794,-3605.2,0.00013835,2]
[351939485,1738853443804,-1449.65,0.00013835,2]
[351939486,1738853443813,-3288.75,0.00013835,2]
[351939487,1738853443823,-1602.84,0.00013835,2]
[351939488,1738853443833,-500.0,0.00013835,2]
[351939489,1738853443843,-703.94,0.00013835,2]
[351939490,1738853443853,-875.81,0.00013835,2]
[351939491,1738853443863,-500.0,0.00013835,2]
[351939492,1738853443873,-508.22,0.00013835,2]
[351939493,1738853443883,-2160.78,0.00013835,2]
[351939494,1738853443893,-1089.43,0.00013835,2]
[351939496,1738853443903,-500.0,0.00013835,2]
[351939498,1738853443913,-955.32,0.00013835,2]
[351939500,1738853443923,-500.0,0.00013835,2]
[351939502,1738853443938,-500.0,0.00013835,2]
[351939504,1738853443948,-500.0,0.00013835,2]
[351939506,1738853443957,-500.0,0.00013835,2]
[351939508,1738853443967,-1410.06,0.00013835,2]
[351939509,1738853443976,-500.0,0.00013835,2]
[351939510,1738853443986,-500.0,0.00013835,2]
[351939511,1738853443995,-500.0,0.00013835,2]
[351939512,1738853444005,-9267.35,0.00013835,2]
[351939513,1738853444015,-449.72302827,0.00013835,2]
[351939514,1738853444025,-500.0,0.00013835,2]
[351939515,1738853444035,-1018.31,0.00013835,2]
[351939516,1738853444044,-4287.37,0.00013835,2]
[351939517,1738853444055,-500.0,0.00013835,2]
[351939518,1738853444064,-921.46,0.00013835,2]
[351939519,1738853444074,-1318.45889411,0.00013849,2]
[351939520,1738853444083,-215.7447597,0.0001389,2]
[351939521,1738853444093,-215.7447597,0.0001389,2]
[351939522,1738853444103,-215.7447597,0.0001389,2]
[351939523,1738853444113,-614.09179907,0.00013896,2]
[351939524,1738853444123,-2033.84680259,0.00013899,2]
[351939525,1738853444132,-151.0,0.000139,2]
[351939526,1738853444142,-151.0,0.000139,2]
[351939527,1738853444151,-1000.0,0.00013963,2]
[351939528,1738853444161,-660.39,0.00013972,2]
[351939529,1738853444170,-500.0,0.00013972,2]
[351939530,1738853444179,-500.0,0.00013972,2]
[351939531,1738853444191,-500.0,0.00013972,2]
[351939532,1738853444201,-500.0,0.00013972,2]
[351939533,1738853444210,-500.0,0.00013972,2]
[351939534,1738853444220,-424.45,0.00013972,2]
[351939535,1738853444230,-534.42497554,0.00013972,2]
[351939536,1738853444240,-864.34,0.00013972,2]
[351939537,1738853444250,-653.85,0.00013972,2]
[351939538,1738853444260,-1409.42,0.00013972,2]
[351939539,1738853444270,-586.70871007,0.00013972,2]
[351939540,1738853444280,-500.0,0.00013972,2]
[351939541,1738853444290,-500.0,0.00013972,2]
[351939542,1738853444300,-500.0,0.00013972,2]
[351939543,1738853444310,-500.0,0.00013972,2]
[351939544,1738853444319,-622.0,0.00013972,2]
[351939545,1738853444329,-848.38,0.00013972,2]
[351939546,1738853444339,-500.0,0.00013972,2]
[351939547,1738853444348,-847.82,0.00013972,2]
[351939548,1738853444358,-500.0,0.00013972,2]
[351939549,1738853444367,-500.0,0.00013972,2]
[351939550,1738853444377,-500.0,0.00013972,2]
[351939551,1738853444387,-500.0,0.00013972,2]
[351939552,1738853444397,-500.0,0.00013972,2]
[351939553,1738853444407,-712.63,0.00013972,2]
[351939554,1738853444416,-750.53,0.00013972,2]
[351939555,1738853444426,-500.0,0.00013972,2]
[351939556,1738853444439,-500.0,0.00013972,2]
[351939557,1738853444449,-500.0,0.00013972,2]
[351939558,1738853444459,-500.0,0.00013972,2]
[351939559,1738853444469,-500.0,0.00013972,2]
[351939560,1738853444479,-1559.74,0.00013972,2]
[351939561,1738853444489,-500.0,0.00013972,2]
[351939562,1738853444498,-500.0,0.00013972,2]
[351939563,1738853444508,-524.14,0.00013972,2]
[351939564,1738853444518,-1569.15,0.00013972,2]
[351939565,1738853444528,-196.03949853,0.00013972,2]
[351939566,1738853444537,-1086.23,0.00013972,2]
[351939567,1738853444547,-500.0,0.00013972,2]
[351939568,1738853444557,-5796.15,0.00013972,2]
[351939569,1738853444567,-500.0,0.00013972,2]
[351939570,1738853444577,-151.0,0.00013972,2]
[351939571,1738853444587,-530.96614738,0.00013972,2]
[351939572,1738853444597,-151.0,0.00013972,2]
[351939573,1738853444607,-571.02,0.00013972,2]
[351939574,1738853444617,-151.0,0.00013972,2]
[351939575,1738853444626,-151.0,0.00013972,2]
[351939576,1738853444636,-629.98221922,0.00013972,2]
[351939577,1738853444646,-151.0,0.00013972,2]
[351939578,1738853444656,-500.0,0.00013972,2]
[351939579,1738853444665,-500.0,0.00013972,2]
[351939580,1738853444676,-1292.8,0.00013972,2]
[351939581,1738853444691,-500.0,0.00013972,2]
[351939582,1738853444700,-151.917224,0.00013972,2]
[351939583,1738853444709,-151.917224,0.00013972,2]
[351939584,1738853444719,-151.0,0.00013972,2]
[351939585,1738853444731,-500.0,0.00013972,2]
[351939586,1738853444740,-151.0,0.00013972,2]
[351939587,1738853444749,-500.0,0.00013972,2]
[351939588,1738853444760,-500.0,0.00013972,2]
[351939589,1738853444769,-1094.73,0.00013972,2]
[351939590,1738853444779,-217.66061,0.00013972,2]
[351939591,1738853444789,-217.66061,0.00013972,2]
[351939592,1738853444799,-500.0,0.00013972,2]
[351939593,1738853444810,-1410.27,0.00013972,2]
[351939594,1738853444820,-500.0,0.00013972,2]
[351939595,1738853444830,-2539.8,0.00013972,2]
[351939596,1738853444839,-500.0,0.00013972,2]
[351939597,1738853444849,-1732.91,0.00013972,2]
[351939598,1738853444859,-639.95,0.00013972,2]
[351939599,1738853444868,-500.0,0.00013972,2]
[351939600,1738853444878,-151.0,0.00013972,2]
[351939601,1738853444888,-151.0,0.00013972,2]
[351939602,1738853444898,-500.0,0.00013972,2]
[351939603,1738853444908,-169.76055,0.00013972,2]
[351939604,1738853444918,-1126.62,0.00013972,2]
[351939605,1738853444928,-500.0,0.00013972,2]
[351939606,1738853444940,-793.43,0.00013972,2]
[351939607,1738853444949,-151.0,0.00013972,2]
[351939608,1738853444959,-827.21,0.00013972,2]
[351939609,1738853444968,-780.14,0.00013972,2]
[351939610,1738853444976,-500.0,0.00013972,2]
[351939611,1738853444986,-1894.12,0.00013972,2]
[351939612,1738853444995,-151.0,0.00013972,2]
[351939613,1738853445002,-500.0,0.00013972,2]
[351939614,1738853445012,-581.44,0.00013972,2]
[351939615,1738853445021,-151.0,0.00013972,2]
[351939616,1738853445030,-1284.9,0.00013972,2]
[351939617,1738853445040,-500.0,0.00013972,2]
[351939618,1738853445049,-500.0,0.00013972,2]
[351939619,1738853445059,-4157.86,0.00013972,2]
[351939620,1738853445068,-397.093741,0.00013972,2]
[351939621,1738853445078,-3126.78,0.00013972,2]
[351939622,1738853445087,-1065.19,0.00013972,2]
[351939623,1738853445097,-397.093741,0.00013972,2]
[351939624,1738853445106,-6963.41,0.00013972,2]
[351939625,1738853445116,-151.0,0.00013972,2]
[351939626,1738853445125,-500.0,0.00013972,2]
[351939627,1738853445135,-500.0,0.00013972,2]
[351939628,1738853445145,-265.86682504,0.00013972,2]
[351939629,1738853445154,-500.0,0.00013972,2]
[351939630,1738853445164,-500.0,0.00013972,2]
[351939631,1738853445174,-151.0,0.00013972,2]
[351939632,1738853445185,-500.0,0.00013972,2]
[351939633,1738853445195,-274.40048507,0.00013972,2]
[351939634,1738853445205,-1016.63,0.00013972,2]
[351939635,1738853445215,-500.0,0.00013972,2]
[351939636,1738853445224,-1027.071389,0.00013972,2]
[351939637,1738853445234,-1200.01,0.00013972,2]
[351939638,1738853445243,-13982.56,0.00013972,2]
[351939639,1738853445252,-500.0,0.00013972,2]
[351939640,1738853445262,-1027.071389,0.00013972,2]
[351939641,1738853445272,-1306.86,0.00013972,2]
[351939642,1738853445281,-500.0,0.00013972,2]
[351939643,1738853445290,-4363.28,0.00013972,2]
[351939644,1738853445299,-234.389468,0.00013972,2]
[351939645,1738853445309,-1001.84,0.00013972,2]
[351939646,1738853445319,-234.389468,0.00013972,2]
[351939647,1738853445329,-500.0,0.00013972,2]
[351939648,1738853445338,-153.484543,0.00013972,2]
[351939649,1738853445348,-42643.98,0.00013972,2]
[351939650,1738853445358,-151.0,0.00013972,2]
[351939651,1738853445368,-500.0,0.00013972,2]
[351939652,1738853445379,-151.0,0.00013972,2]
[351939653,1738853445389,-151.0,0.00013972,2]
[351939654,1738853445398,-2320.38,0.00013972,2]
[351939655,1738853445407,-500.0,0.00013972,2]
[351939656,1738853445416,-500.0,0.00013972,2]
[351939657,1738853445425,-500.0,0.00013972,2]
[351939658,1738853445437,-500.0,0.00013972,2]
[351939659,1738853445447,-500.0,0.00013972,2]
[351939660,1738853445457,-1322.58,0.00013972,2]
[351939661,1738853445467,-500.0,0.00013972,2]
[351939662,1738853445477,-2135.49,0.00013972,2]
[351939663,1738853445487,-2468.47,0.00013972,2]
[351939664,1738853445496,-154.103974,0.00013972,2]
[351939665,1738853445506,-154.103974,0.00013972,2]
[351939666,1738853445515,-1507.93,0.00013972,2]
[351939667,1738853445525,-151.0,0.00013972,2]
[351939668,1738853445534,-273.349625,0.00013972,2]
[351939669,1738853445543,-500.0,0.00013972,2]
[351939670,1738853445552,-273.349625,0.00013972,2]
[351939671,1738853445562,-500.0,0.00013972,2]
[351939672,1738853445571,-1357.54,0.00013972,2]
[351939673,1738853445580,-1206.68,0.00013972,2]
[351939674,1738853445590,-1755.26,0.00013972,2]
[351939675,1738853445599,-713.241668,0.00013972,2]
[351939676,1738853445608,-17470.79,0.00013972,2]
[351939677,1738853445617,-500.0,0.00013972,2]
[351939678,1738853445627,-713.241668,0.00013972,2]
[351939679,1738853445637,-151.0,0.00013972,2]
[351939680,1738853445646,-644.09,0.00013972,2]
[351939681,1738853445655,-500.0,0.00013972,2]
[351939682,1738853445665,-500.0,0.00013972,2]
[351939683,1738853445675,-500.0,0.00013972,2]
[351939684,1738853445689,-729.89,0.00013972,2]
[351939685,1738853445700,-2380.35,0.00013972,2]
[351939686,1738853445709,-780.62,0.00013972,2]
[351939687,1738853445719,-3605.2,0.00013972,2]
[351939688,1738853445728,-151.0,0.00013972,2]
[351939689,1738853445739,-151.0,0.00013972,2]
[351939690,1738853445749,-1449.65,0.00013972,2]
[351939691,1738853445758,-3288.75,0.00013972,2]
[351939692,1738853445770,-1602.84,0.00013972,2]
[351939693,1738853445779,-199.691131,0.00013972,2]
[351939694,1738853445788,-151.0,0.00013972,2]
[351939695,1738853445797,-500.0,0.00013972,2]
[351939696,1738853445809,-703.94,0.00013972,2]
[351939697,1738853445825,-875.81,0.00013972,2]
[351939698,1738853445834,-500.0,0.00013972,2]
[351939699,1738853445844,-508.22,0.00013972,2]
[351939700,1738853445853,-2160.78,0.00013972,2]
[351939701,1738853445863,-1089.43,0.00013972,2]
[351939702,1738853445873,-500.0,0.00013972,2]
[351939703,1738853445884,-183.695338,0.00013972,2]
[351939704,1738853445893,-183.695338,0.00013972,2]
[351939705,1738853445903,-955.32,0.00013972,2]
[351939706,1738853445912,-500.0,0.00013972,2]
[351939707,1738853445922,-500.0,0.00013972,2]
[351939708,1738853445931,-500.0,0.00013972,2]
[351939710,1738853445943,-500.0,0.00013972,2]
[351939712,1738853445952,-1410.06,0.00013972,2]
[351939713,1738853445961,-500.0,0.00013972,2]
[351939714,1738853445971,-151.0,0.00013972,2]
[351939715,1738853445980,-500.0,0.00013972,2]
[351939716,1738853445990,-9267.35,0.00013972,2]
[351939717,1738853445999,-151.0,0.00013972,2]
[351939718,1738853446009,-1018.31,0.00013972,2]
[351939719,1738853446018,-500.0,0.00013972,2]
[351939720,1738853446028,-4287.37,0.00013972,2]
[351939721,1738853446037,-500.0,0.00013972,2]
[351939722,1738853446047,-921.46,0.00013972,2]
[351939723,1738853446056,-400.0,0.00013973,2]
[351939724,1738853446066,-1318.45889411,0.00013974,2]
[351939725,1738853446075,-1000.0,0.00013975,2]
[351939726,1738853446085,-1000.0,0.00013984,2]
[351939727,1738853446095,-9050.53909296,0.0001399,2]
[351939729,1738853446104,-1000.0,0.00013991,2]
[351939730,1738853446118,-9050.53909296,0.00013995,2]
[351939732,1738853446129,-9050.53909296,0.00013998,2]
[351939733,1738853446138,-868.50679484,0.00013998,2]
[351939735,1738853446148,-151.0,0.00014,2]